[Event "Late Titled Tuesday Blitz February 8 2022"]
[White "Reprintsev, Alexander"]
[Black "Fishbein, Alexander"]
[WhiteFideId "14100541"]
[BlackFideId "2000377"]
[WhiteElo "2126"]
[BlackElo "2442"]
[Result "1/2-1/2"]
[Round "07"]
[TimeControl "180+1"]
[Date "2022.02.09"]
[WhiteClock "0:00:07"]
[BlackClock "0:00:06"]

1. e4 {[%clk 0:02:33]}  c5 {[%clk 0:02:57]} 2. b3 {[%clk 0:02:32]}  d6 {[%clk 0:02:55]} 3. Bb2 {[%clk 0:02:31]}  e5 {[%clk 0:02:56]} 4. f4 {[%clk 0:02:31]}  Nc6 {[%clk 0:02:52]} 5. Qf3 {[%clk 0:02:30]}  Nf6 {[%clk 0:02:48]} 6. Bb5 {[%clk 0:02:19]}  exf4 {[%clk 0:02:48]} 7. Qxf4 {[%clk 0:02:18]}  Bd7 {[%clk 0:02:40]} 8. Bxf6 {[%clk 0:02:16]}  Qxf6 {[%clk 0:02:41]} 9. Qxf6 {[%clk 0:02:16]}  gxf6 {[%clk 0:02:42]} 10. Nc3 {[%clk 0:02:15]}  f5 {[%clk 0:02:39]} 11. Nd5 {[%clk 0:02:11]}  O-O-O {[%clk 0:02:36]} 12. exf5 {[%clk 0:01:59]}  Bxf5 {[%clk 0:02:35]} 13. Bxc6 {[%clk 0:01:57]}  bxc6 {[%clk 0:02:35]} 14. Ne3 {[%clk 0:01:57]}  Bg6 {[%clk 0:02:31]} 15. O-O-O {[%clk 0:01:56]}  Bh6 {[%clk 0:02:27]} 16. Re1 {[%clk 0:01:56]}  Rhe8 {[%clk 0:02:26]} 17. Nf3 {[%clk 0:01:48]}  d5 {[%clk 0:02:25]} 18. Ng4 {[%clk 0:01:42]}  Bg7 {[%clk 0:02:24]} 19. Nge5 {[%clk 0:01:37]}  Kc7 {[%clk 0:02:08]} 20. Rhf1 {[%clk 0:01:34]}  Rd6 {[%clk 0:01:32]} 21. Nxg6 {[%clk 0:01:31]}  Rxe1+ {[%clk 0:01:29]} 22. Rxe1 {[%clk 0:01:27]}  hxg6 {[%clk 0:01:29]} 23. Kd1 {[%clk 0:01:15]}  Re6 {[%clk 0:01:20]} 24. Rf1 {[%clk 0:01:13]}  f5 {[%clk 0:01:17]} 25. h3 {[%clk 0:01:06]}  Kd6 {[%clk 0:01:16]} 26. g4 {[%clk 0:01:05]}  fxg4 {[%clk 0:00:56]} 27. hxg4 {[%clk 0:01:04]}  Re4 {[%clk 0:00:54]} 28. Rg1 {[%clk 0:01:02]}  Bf6 {[%clk 0:00:52]} 29. c3 {[%clk 0:00:57]}  c4 {[%clk 0:00:51]} 30. b4 {[%clk 0:00:56]}  Re8 {[%clk 0:00:48]} 31. g5 {[%clk 0:00:53]}  Bd8 {[%clk 0:00:43]} 32. Rh1 {[%clk 0:00:37]}  Rf8 {[%clk 0:00:43]} 33. Rh3 {[%clk 0:00:36]}  Rf5 {[%clk 0:00:37]} 34. Rg3 {[%clk 0:00:28]}  Kd7 {[%clk 0:00:34]} 35. Ke2 {[%clk 0:00:27]}  Bb6 {[%clk 0:00:24]} 36. a4 {[%clk 0:00:26]}  a5 {[%clk 0:00:23]} 37. bxa5 {[%clk 0:00:26]}  Bxa5 {[%clk 0:00:24]} 38. Nd4 {[%clk 0:00:26]}  Re5+ {[%clk 0:00:23]} 39. Kf3 {[%clk 0:00:25]}  Bb6 {[%clk 0:00:23]} 40. Ne2 {[%clk 0:00:24]}  c5 {[%clk 0:00:21]} 41. Nf4 {[%clk 0:00:22]}  Rf5 {[%clk 0:00:20]} 42. Kg4 {[%clk 0:00:20]}  Bc7 {[%clk 0:00:20]} 43. Rf3 {[%clk 0:00:20]}  Bxf4 {[%clk 0:00:13]} 44. Rxf4 {[%clk 0:00:20]}  Re5 {[%clk 0:00:14]} 45. Rf6 {[%clk 0:00:19]}  Re2 {[%clk 0:00:14]} 46. Rxg6 {[%clk 0:00:19]}  Rxd2 {[%clk 0:00:14]} 47. Rf6 {[%clk 0:00:15]}  Ke7 {[%clk 0:00:14]} 48. Rf1 {[%clk 0:00:14]}  Ra2 {[%clk 0:00:13]} 49. g6 {[%clk 0:00:14]}  Rxa4 {[%clk 0:00:12]} 50. Kg5 {[%clk 0:00:13]}  Ra2 {[%clk 0:00:12]} 51. g7 {[%clk 0:00:11]}  Rg2+ {[%clk 0:00:12]} 52. Kh6 {[%clk 0:00:11]}  d4 {[%clk 0:00:12]} 53. Rf8 {[%clk 0:00:09]}  Rh2+ {[%clk 0:00:12]} 54. Kg6 {[%clk 0:00:09]}  Rg2+ {[%clk 0:00:13]} 55. Kh7 {[%clk 0:00:10]}  Rh2+ {[%clk 0:00:13]} 56. Kg8 {[%clk 0:00:09]}  d3 {[%clk 0:00:13]} 57. Rf5 {[%clk 0:00:08]}  d2 {[%clk 0:00:11]} 58. Rd5 {[%clk 0:00:08]}  Ke6 {[%clk 0:00:12]} 59. Rd8 {[%clk 0:00:08]}  Ke5 {[%clk 0:00:11]} 60. Kf8 {[%clk 0:00:08]}  Rf2+ {[%clk 0:00:11]} 61. Ke7 {[%clk 0:00:08]}  Rg2 {[%clk 0:00:11]} 62. Kf7 {[%clk 0:00:08]}  Rf2+ {[%clk 0:00:11]} 63. Ke7 {[%clk 0:00:08]}  Rg2 {[%clk 0:00:11]} 64. Kf7 {[%clk 0:00:07]}  Rf2+ {[%clk 0:00:06]} 65. Ke7 {[%clk 0:00:07]} 1/2-1/2


[Site "https://www.chess.com"]

[Event "Late Titled Tuesday Blitz February 8 2022"]
[White "Romanchuk, Viktor"]
[Black "Bauer, Thomas"]
[WhiteFideId "14109271"]
[BlackFideId "1639293"]
[WhiteElo "2242"]
[BlackElo "2220"]
[Result "1-0"]
[Round "07"]
[TimeControl "180+1"]
[Date "2022.02.09"]
[WhiteClock "0:01:06"]
[BlackClock "0:00:05"]

1. d4 {[%clk 0:03:00]}  e6 {[%clk 0:02:47]} 2. c4 {[%clk 0:03:00]}  c5 {[%clk 0:02:43]} 3. d5 {[%clk 0:02:57]}  g6 {[%clk 0:02:40]} 4. e4 {[%clk 0:02:52]}  Bg7 {[%clk 0:02:39]} 5. f4 {[%clk 0:02:52]}  d6 {[%clk 0:02:22]} 6. Nf3 {[%clk 0:02:50]}  a6 {[%clk 0:02:20]} 7. Nc3 {[%clk 0:02:48]}  exd5 {[%clk 0:02:18]} 8. cxd5 {[%clk 0:02:47]}  b5 {[%clk 0:02:17]} 9. a4 {[%clk 0:02:45]}  b4 {[%clk 0:02:16]} 10. Nb1 {[%clk 0:02:46]}  Nf6 {[%clk 0:02:15]} 11. Nbd2 {[%clk 0:02:46]}  O-O {[%clk 0:02:11]} 12. Bd3 {[%clk 0:02:43]}  Re8 {[%clk 0:02:04]} 13. O-O {[%clk 0:02:43]}  Bg4 {[%clk 0:02:04]} 14. a5 {[%clk 0:02:41]}  Nbd7 {[%clk 0:02:01]} 15. h3 {[%clk 0:02:39]}  Bxf3 {[%clk 0:02:01]} 16. Qxf3 {[%clk 0:02:40]}  Qc7 {[%clk 0:01:40]} 17. Nc4 {[%clk 0:02:39]}  Rab8 {[%clk 0:01:35]} 18. Bd2 {[%clk 0:02:33]}  Kh8 {[%clk 0:01:18]} 19. Rae1 {[%clk 0:02:29]}  Ng8 {[%clk 0:01:16]} 20. Kh1 {[%clk 0:02:26]}  Rb5 {[%clk 0:01:11]} 21. e5 {[%clk 0:02:12]}  dxe5 {[%clk 0:01:05]} 22. fxe5 {[%clk 0:02:12]}  Nxe5 {[%clk 0:00:55]} 23. Nxe5 {[%clk 0:02:10]}  Rxe5 {[%clk 0:00:54]} 24. Bxb5 {[%clk 0:02:03]}  axb5 {[%clk 0:00:37]} 25. Qxf7 {[%clk 0:01:51]}  Qxf7 {[%clk 0:00:31]} 26. Rxf7 {[%clk 0:01:50]}  Rxd5 {[%clk 0:00:32]} 27. Bf4 {[%clk 0:01:37]}  g5 {[%clk 0:00:19]} 28. Bg3 {[%clk 0:01:28]}  c4 {[%clk 0:00:12]} 29. a6 {[%clk 0:01:27]}  Bd4 {[%clk 0:00:12]} 30. Re8 {[%clk 0:01:21]}  g4 {[%clk 0:00:08]} 31. Rff8 {[%clk 0:01:06]}  Rg5 {[%clk 0:00:08]} 32. a7 {[%clk 0:01:06]}  Bxa7 {[%clk 0:00:06]} 33. Rxg8+ {[%clk 0:01:05]}  Rxg8 {[%clk 0:00:05]} 34. Be5# {[%clk 0:01:06]} 1-0


[Site "https://www.chess.com"]

[Event "Late Titled Tuesday Blitz February 8 2022"]
[White "Ruiz Aguilar, Pablo Alexander"]
[Black "Domingo Nunez, Alejandro"]
[WhiteFideId "4401352"]
[BlackFideId "22245561"]
[WhiteElo "2125"]
[BlackElo "2215"]
[Result "1-0"]
[Round "07"]
[TimeControl "180+1"]
[Date "2022.02.09"]
[WhiteClock "0:00:21"]
[BlackClock "0:00:03"]

1. e4 {[%clk 0:03:00]}  c6 {[%clk 0:02:58]} 2. d4 {[%clk 0:03:00]}  d5 {[%clk 0:02:59]} 3. exd5 {[%clk 0:03:00]}  cxd5 {[%clk 0:03:00]} 4. c4 {[%clk 0:03:01]}  Nf6 {[%clk 0:02:52]} 5. Nc3 {[%clk 0:03:00]}  Nc6 {[%clk 0:02:49]} 6. Bg5 {[%clk 0:02:59]}  dxc4 {[%clk 0:02:36]} 7. d5 {[%clk 0:02:53]}  Ne5 {[%clk 0:02:34]} 8. Nf3 {[%clk 0:02:50]}  Bg4 {[%clk 0:02:21]} 9. Qa4+ {[%clk 0:02:31]}  Bd7 {[%clk 0:02:19]} 10. Qd1 {[%clk 0:02:32]}  Nxf3+ {[%clk 0:01:53]} 11. Qxf3 {[%clk 0:02:31]}  Qb6 {[%clk 0:01:54]} 12. Bxc4 {[%clk 0:02:26]}  Qxb2 {[%clk 0:01:44]} 13. O-O {[%clk 0:02:26]}  Rc8 {[%clk 0:01:44]} 14. Rfb1 {[%clk 0:02:04]}  Qc2 {[%clk 0:01:16]} 15. Rc1 {[%clk 0:02:00]}  Qf5 {[%clk 0:01:14]} 16. Qxf5 {[%clk 0:01:36]}  Bxf5 {[%clk 0:01:15]} 17. Bb3 {[%clk 0:01:33]}  a6 {[%clk 0:01:05]} 18. f3 {[%clk 0:01:32]}  h6 {[%clk 0:00:58]} 19. Be3 {[%clk 0:01:30]}  h5 {[%clk 0:00:29]} 20. Bb6 {[%clk 0:01:25]}  g6 {[%clk 0:00:23]} 21. Na4 {[%clk 0:01:21]}  Bh6 {[%clk 0:00:22]} 22. Rxc8+ {[%clk 0:01:19]}  Bxc8 {[%clk 0:00:22]} 23. Re1 {[%clk 0:01:16]}  Nd7 {[%clk 0:00:13]} 24. Bd4 {[%clk 0:01:14]}  Rg8 {[%clk 0:00:06]} 25. d6 {[%clk 0:01:05]}  e6 {[%clk 0:00:06]} 26. Re2 {[%clk 0:00:57]}  Bf4 {[%clk 0:00:05]} 27. Rc2 {[%clk 0:00:53]}  Kd8 {[%clk 0:00:05]} 28. Nb6 {[%clk 0:00:49]}  Nxb6 {[%clk 0:00:04]} 29. Bxb6+ {[%clk 0:00:49]}  Kd7 {[%clk 0:00:05]} 30. Ba4+ {[%clk 0:00:42]}  Kxd6 {[%clk 0:00:05]} 31. Bc7+ {[%clk 0:00:42]}  Kd5 {[%clk 0:00:03]} 32. Bxf4 {[%clk 0:00:42]}  e5 {[%clk 0:00:04]} 33. Be3 {[%clk 0:00:42]}  Bf5 {[%clk 0:00:04]} 34. Bb3+ {[%clk 0:00:42]}  Kd6 {[%clk 0:00:04]} 35. Rd2+ {[%clk 0:00:41]}  Ke7 {[%clk 0:00:05]} 36. Bc5+ {[%clk 0:00:40]}  Kf6 {[%clk 0:00:05]} 37. Rd6+ {[%clk 0:00:39]}  Kg5 {[%clk 0:00:05]} 38. Bxf7 {[%clk 0:00:38]}  Rc8 {[%clk 0:00:06]} 39. Be3+ {[%clk 0:00:33]}  Kh4 {[%clk 0:00:07]} 40. Be6 {[%clk 0:00:28]}  Rc3 {[%clk 0:00:03]} 41. Bxf5 {[%clk 0:00:27]}  gxf5 {[%clk 0:00:04]} 42. Bd2 {[%clk 0:00:25]}  Ra3 {[%clk 0:00:03]} 43. Rg6 {[%clk 0:00:21]}  Rxa2 {[%clk 0:00:03]} 44. Bg5# {[%clk 0:00:21]} 1-0


[Site "https://www.chess.com"]

[Event "Late Titled Tuesday Blitz February 8 2022"]
[White "Sailer, Mike"]
[Black "Kanyamarala, Trisha"]
[WhiteFideId "2012901"]
[BlackFideId "45004722"]
[WhiteElo "2109"]
[BlackElo "2002"]
[Result "0-1"]
[Round "07"]
[TimeControl "180+1"]
[Date "2022.02.09"]
[WhiteClock "0:00:02"]
[BlackClock "0:00:03"]

1. d4 {[%clk 0:03:00]}  Nf6 {[%clk 0:02:57]} 2. Nf3 {[%clk 0:03:00]}  d5 {[%clk 0:02:57]} 3. Bf4 {[%clk 0:03:01]}  e6 {[%clk 0:02:57]} 4. e3 {[%clk 0:02:59]}  c5 {[%clk 0:02:57]} 5. Nc3 {[%clk 0:02:57]}  a6 {[%clk 0:02:55]} 6. Be2 {[%clk 0:02:54]}  Nc6 {[%clk 0:02:52]} 7. O-O {[%clk 0:02:53]}  Bd6 {[%clk 0:02:52]} 8. Bxd6 {[%clk 0:02:52]}  Qxd6 {[%clk 0:02:52]} 9. dxc5 {[%clk 0:02:47]}  Qxc5 {[%clk 0:02:52]} 10. Nd4 {[%clk 0:02:48]}  O-O {[%clk 0:02:45]} 11. Nxc6 {[%clk 0:02:38]}  bxc6 {[%clk 0:02:45]} 12. Na4 {[%clk 0:02:38]}  Qd6 {[%clk 0:02:41]} 13. c4 {[%clk 0:02:35]}  Rb8 {[%clk 0:02:35]} 14. c5 {[%clk 0:02:22]}  Qe5 {[%clk 0:02:34]} 15. b3 {[%clk 0:02:14]}  Ne4 {[%clk 0:02:31]} 16. Qc2 {[%clk 0:01:54]}  Qg5 {[%clk 0:02:28]} 17. Bd3 {[%clk 0:01:44]}  f5 {[%clk 0:02:23]} 18. f4 {[%clk 0:01:36]}  Qf6 {[%clk 0:02:22]} 19. Bxe4 {[%clk 0:01:35]}  fxe4 {[%clk 0:02:21]} 20. Nb6 {[%clk 0:01:28]}  e5 {[%clk 0:02:17]} 21. fxe5 {[%clk 0:01:24]}  Qxe5 {[%clk 0:02:17]} 22. Rxf8+ {[%clk 0:01:24]}  Kxf8 {[%clk 0:02:17]} 23. Rf1+ {[%clk 0:01:25]}  Kg8 {[%clk 0:02:17]} 24. Qf2 {[%clk 0:01:25]}  Qe8 {[%clk 0:01:57]} 25. Qf4 {[%clk 0:01:11]}  Be6 {[%clk 0:01:54]} 26. Qc7 {[%clk 0:00:57]}  h6 {[%clk 0:01:32]} 27. h3 {[%clk 0:00:55]}  Qd8 {[%clk 0:00:55]} 28. Qa7 {[%clk 0:00:49]}  a5 {[%clk 0:00:37]} 29. Qxa5 {[%clk 0:00:46]}  Qg5 {[%clk 0:00:36]} 30. Qd2 {[%clk 0:00:26]}  Bxh3 {[%clk 0:00:32]} 31. a4 {[%clk 0:00:24]}  Bc8 {[%clk 0:00:24]} 32. Qf2 {[%clk 0:00:19]}  Ba6 {[%clk 0:00:22]} 33. Qf7+ {[%clk 0:00:10]}  Kh8 {[%clk 0:00:22]} 34. Rf4 {[%clk 0:00:07]}  Qg3 {[%clk 0:00:18]} 35. Nd7 {[%clk 0:00:06]}  Qxe3+ {[%clk 0:00:14]} 36. Kh2 {[%clk 0:00:07]}  Rg8 {[%clk 0:00:13]} 37. Nf8 {[%clk 0:00:04]}  Qd4 {[%clk 0:00:07]} 38. Ng6+ {[%clk 0:00:04]}  Kh7 {[%clk 0:00:07]} 39. Qf5 {[%clk 0:00:05]}  Bc8 {[%clk 0:00:05]} 40. Qh5 {[%clk 0:00:02]}  Be6 {[%clk 0:00:03]} 41. Nh4 {[%clk 0:00:02]}  g6 {[%clk 0:00:02]} 42. Nxg6 {[%clk 0:00:02]}  Rxg6 {[%clk 0:00:03]} 0-1


[Site "https://www.chess.com"]

[Event "Late Titled Tuesday Blitz February 8 2022"]
[White "Sarana, Alexey"]
[Black "Jobava, Baadur"]
[WhiteFideId "24133795"]
[BlackFideId "13601520"]
[WhiteElo "2665"]
[BlackElo "2617"]
[Result "1-0"]
[Round "07"]
[TimeControl "180+1"]
[Date "2022.02.08"]
[WhiteClock "0:00:10"]
[BlackClock "0:00:04"]

1. d4 {[%clk 0:02:42]}  d5 {[%clk 0:02:59]} 2. c4 {[%clk 0:02:42]}  dxc4 {[%clk 0:03:00]} 3. e4 {[%clk 0:02:41]}  Nf6 {[%clk 0:03:01]} 4. e5 {[%clk 0:02:40]}  Nd5 {[%clk 0:03:01]} 5. Bxc4 {[%clk 0:02:41]}  Nb6 {[%clk 0:02:57]} 6. Bd3 {[%clk 0:02:39]}  Nc6 {[%clk 0:02:55]} 7. Be3 {[%clk 0:02:39]}  Nb4 {[%clk 0:02:54]} 8. Be4 {[%clk 0:02:39]}  c6 {[%clk 0:02:53]} 9. Nc3 {[%clk 0:02:39]}  Be6 {[%clk 0:02:51]} 10. Nge2 {[%clk 0:02:38]}  Qd7 {[%clk 0:02:49]} 11. O-O {[%clk 0:02:37]}  Rd8 {[%clk 0:02:49]} 12. Nf4 {[%clk 0:02:37]}  Bc4 {[%clk 0:02:49]} 13. Re1 {[%clk 0:02:37]}  e6 {[%clk 0:02:43]} 14. Qg4 {[%clk 0:02:36]}  g6 {[%clk 0:02:39]} 15. h4 {[%clk 0:02:29]}  Be7 {[%clk 0:02:37]} 16. b3 {[%clk 0:02:07]}  Ba6 {[%clk 0:02:36]} 17. Rad1 {[%clk 0:02:08]}  N6d5 {[%clk 0:02:34]} 18. Na4 {[%clk 0:02:01]}  Nxa2 {[%clk 0:02:25]} 19. h5 {[%clk 0:01:53]}  Nac3 {[%clk 0:02:16]} 20. Nxc3 {[%clk 0:01:12]}  Nxc3 {[%clk 0:02:16]} 21. hxg6 {[%clk 0:01:13]}  hxg6 {[%clk 0:02:16]} 22. Bxg6 {[%clk 0:01:12]}  Bb4 {[%clk 0:02:01]} 23. Nh5 {[%clk 0:00:42]}  Nd5 {[%clk 0:01:54]} 24. Be4 {[%clk 0:00:36]}  Bxe1 {[%clk 0:01:17]} 25. Bxd5 {[%clk 0:00:36]}  Rxh5 {[%clk 0:01:12]} 26. Qxh5 {[%clk 0:00:32]}  Bxf2+ {[%clk 0:01:10]} 27. Bxf2 {[%clk 0:00:26]}  Qxd5 {[%clk 0:01:11]} 28. Bh4 {[%clk 0:00:25]}  Qa5 {[%clk 0:00:10]} 29. Bxd8 {[%clk 0:00:16]}  Qxd8 {[%clk 0:00:11]} 30. Qh8+ {[%clk 0:00:13]}  Kd7 {[%clk 0:00:11]} 31. Qxd8+ {[%clk 0:00:13]}  Kxd8 {[%clk 0:00:12]} 32. Ra1 {[%clk 0:00:13]}  Ke7 {[%clk 0:00:10]} 33. Kf2 {[%clk 0:00:13]}  Kf8 {[%clk 0:00:10]} 34. Ke3 {[%clk 0:00:13]}  Kg7 {[%clk 0:00:11]} 35. Kf4 {[%clk 0:00:14]}  Kg6 {[%clk 0:00:11]} 36. b4 {[%clk 0:00:13]}  Kh6 {[%clk 0:00:11]} 37. Ra3 {[%clk 0:00:13]}  Kg6 {[%clk 0:00:11]} 38. Rg3+ {[%clk 0:00:13]}  Kh7 {[%clk 0:00:11]} 39. Kg5 {[%clk 0:00:13]}  Kg7 {[%clk 0:00:12]} 40. Kh4+ {[%clk 0:00:13]}  Kf8 {[%clk 0:00:12]} 41. Ra3 {[%clk 0:00:12]}  Kg7 {[%clk 0:00:12]} 42. Kg5 {[%clk 0:00:13]}  Bf1 {[%clk 0:00:03]} 43. Rxa7 {[%clk 0:00:10]}  Bxg2 {[%clk 0:00:04]} 44. Ra2 {[%clk 0:00:06]}  Bd5 {[%clk 0:00:03]} 45. Ra8 {[%clk 0:00:06]}  b5 {[%clk 0:00:03]} 46. Rb8 {[%clk 0:00:06]}  Be4 {[%clk 0:00:03]} 47. Rc8 {[%clk 0:00:06]}  Bd5 {[%clk 0:00:04]} 48. Rc7 {[%clk 0:00:07]}  Be4 {[%clk 0:00:04]} 49. Ra7 {[%clk 0:00:07]}  Bd5 {[%clk 0:00:04]} 50. Ra3 {[%clk 0:00:08]}  Be4 {[%clk 0:00:04]} 51. Rg3 {[%clk 0:00:08]}  Bd5 {[%clk 0:00:03]} 52. Kh4+ {[%clk 0:00:08]}  Kf8 {[%clk 0:00:03]} 53. Rg4 {[%clk 0:00:09]}  Ke7 {[%clk 0:00:03]} 54. Kg5 {[%clk 0:00:09]}  Bf3 {[%clk 0:00:03]} 55. Rh4 {[%clk 0:00:09]}  Bd5 {[%clk 0:00:04]} 56. Rh8 {[%clk 0:00:10]}  Be4 {[%clk 0:00:04]} 57. Ra8 {[%clk 0:00:10]} 1-0


[Site "https://www.chess.com"]

[Event "Late Titled Tuesday Blitz February 8 2022"]
[White "Shoker, Samy"]
[Black "Velikanov, Alexander"]
[WhiteFideId "627143"]
[BlackFideId "2039290"]
[WhiteElo "2493"]
[BlackElo "2259"]
[Result "1-0"]
[Round "07"]
[TimeControl "180+1"]
[Date "2022.02.08"]
[WhiteClock "0:00:20"]
[BlackClock "0:00:04"]

1. Nf3 {[%clk 0:03:00]}  Nf6 {[%clk 0:02:57]} 2. g3 {[%clk 0:03:01]}  g6 {[%clk 0:02:57]} 3. Bg2 {[%clk 0:03:01]}  Bg7 {[%clk 0:02:58]} 4. O-O {[%clk 0:03:02]}  O-O {[%clk 0:02:58]} 5. c4 {[%clk 0:03:03]}  d6 {[%clk 0:02:58]} 6. Nc3 {[%clk 0:03:02]}  e5 {[%clk 0:02:56]} 7. d3 {[%clk 0:03:03]}  a5 {[%clk 0:02:52]} 8. Rb1 {[%clk 0:03:03]}  c6 {[%clk 0:02:50]} 9. a3 {[%clk 0:03:03]}  Re8 {[%clk 0:02:47]} 10. Nd2 {[%clk 0:03:02]}  d5 {[%clk 0:02:43]} 11. b4 {[%clk 0:03:01]}  axb4 {[%clk 0:02:41]} 12. axb4 {[%clk 0:03:02]}  Bg4 {[%clk 0:02:28]} 13. h3 {[%clk 0:03:01]}  Be6 {[%clk 0:02:28]} 14. Bb2 {[%clk 0:02:59]}  Qd7 {[%clk 0:02:28]} 15. Kh2 {[%clk 0:02:59]}  Na6 {[%clk 0:02:22]} 16. b5 {[%clk 0:02:58]}  Nc7 {[%clk 0:02:18]} 17. Nf3 {[%clk 0:02:44]}  Qd6 {[%clk 0:01:55]} 18. bxc6 {[%clk 0:02:07]}  bxc6 {[%clk 0:01:56]} 19. Nxe5 {[%clk 0:02:07]}  Qxe5 {[%clk 0:01:53]} 20. Nxd5 {[%clk 0:02:07]}  Qxb2 {[%clk 0:01:39]} 21. Rxb2 {[%clk 0:02:04]}  cxd5 {[%clk 0:01:39]} 22. Rb7 {[%clk 0:02:03]}  Rac8 {[%clk 0:01:37]} 23. c5 {[%clk 0:01:57]}  d4 {[%clk 0:01:35]} 24. Qa4 {[%clk 0:01:52]}  Nfd5 {[%clk 0:01:32]} 25. Qa5 {[%clk 0:01:40]}  Ra8 {[%clk 0:01:27]} 26. Qd2 {[%clk 0:01:40]}  Rac8 {[%clk 0:01:08]} 27. Ra1 {[%clk 0:01:37]}  Nc3 {[%clk 0:01:06]} 28. c6 {[%clk 0:01:25]}  Bd5 {[%clk 0:00:58]} 29. Qf4 {[%clk 0:01:12]}  Be5 {[%clk 0:00:44]} 30. Qh4 {[%clk 0:01:05]}  Bxg2 {[%clk 0:00:36]} 31. Kxg2 {[%clk 0:01:06]}  Re6 {[%clk 0:00:32]} 32. Qg4 {[%clk 0:01:00]}  Rce8 {[%clk 0:00:30]} 33. Qf3 {[%clk 0:00:56]}  N3d5 {[%clk 0:00:23]} 34. Raa7 {[%clk 0:00:52]}  Rxc6 {[%clk 0:00:17]} 35. h4 {[%clk 0:00:36]}  h5 {[%clk 0:00:17]} 36. Ra5 {[%clk 0:00:23]}  Rf6 {[%clk 0:00:16]} 37. Qe4 {[%clk 0:00:22]}  Nc3 {[%clk 0:00:16]} 38. Qxe5 {[%clk 0:00:17]}  Rxe5 {[%clk 0:00:17]} 39. Rxe5 {[%clk 0:00:18]}  N7d5 {[%clk 0:00:16]} 40. Rb8+ {[%clk 0:00:18]}  Kg7 {[%clk 0:00:16]} 41. Rd8 {[%clk 0:00:17]}  Rf5 {[%clk 0:00:14]} 42. Rxf5 {[%clk 0:00:16]}  gxf5 {[%clk 0:00:15]} 43. Kf3 {[%clk 0:00:17]}  Kf6 {[%clk 0:00:14]} 44. Rd6+ {[%clk 0:00:18]}  Ke5 {[%clk 0:00:14]} 45. Ra6 {[%clk 0:00:18]}  Nf6 {[%clk 0:00:14]} 46. Ra5+ {[%clk 0:00:18]}  Ncd5 {[%clk 0:00:14]} 47. e3 {[%clk 0:00:17]}  dxe3 {[%clk 0:00:14]} 48. fxe3 {[%clk 0:00:18]}  Ke6 {[%clk 0:00:14]} 49. Ra6+ {[%clk 0:00:18]}  Ke5 {[%clk 0:00:14]} 50. Ra5 {[%clk 0:00:19]}  Ke6 {[%clk 0:00:14]} 51. Rb5 {[%clk 0:00:19]}  Nd7 {[%clk 0:00:12]} 52. e4 {[%clk 0:00:19]}  fxe4+ {[%clk 0:00:13]} 53. dxe4 {[%clk 0:00:19]}  Ne5+ {[%clk 0:00:13]} 54. Kg2 {[%clk 0:00:20]}  Nf6 {[%clk 0:00:13]} 55. Rb6+ {[%clk 0:00:19]}  Ke7 {[%clk 0:00:13]} 56. Rb7+ {[%clk 0:00:20]}  Kf8 {[%clk 0:00:13]} 57. Rb6 {[%clk 0:00:20]}  Nxe4 {[%clk 0:00:11]} 58. Rh6 {[%clk 0:00:19]}  Kg7 {[%clk 0:00:04]} 59. Rxh5 {[%clk 0:00:20]}  f6 {[%clk 0:00:05]} 60. Rf5 {[%clk 0:00:19]}  Kg6 {[%clk 0:00:05]} 61. Rf4 {[%clk 0:00:19]}  Nd6 {[%clk 0:00:04]} 62. Ra4 {[%clk 0:00:19]}  Nf5 {[%clk 0:00:04]} 63. Kh3 {[%clk 0:00:20]}  Ne3 {[%clk 0:00:04]} 64. Ra8 {[%clk 0:00:20]}  N3g4 {[%clk 0:00:04]} 65. Rg8+ {[%clk 0:00:20]}  Kf5 {[%clk 0:00:04]} 66. h5 {[%clk 0:00:20]}  Nh6 {[%clk 0:00:04]} 67. Rg7 {[%clk 0:00:20]}  Nef7 {[%clk 0:00:04]} 68. Rg6 {[%clk 0:00:20]}  Ke5 {[%clk 0:00:03]} 69. g4 {[%clk 0:00:20]}  Kf4 {[%clk 0:00:03]} 70. Kh4 {[%clk 0:00:20]}  Ke5 {[%clk 0:00:04]} 71. Kh3 {[%clk 0:00:20]}  Ke6 {[%clk 0:00:04]} 72. Kh4 {[%clk 0:00:20]}  Ke5 {[%clk 0:00:05]} 73. Rg7 {[%clk 0:00:20]}  Ng5 {[%clk 0:00:04]} 74. Rxg5+ {[%clk 0:00:20]}  fxg5+ {[%clk 0:00:05]} 75. Kxg5 {[%clk 0:00:21]}  Nf7+ {[%clk 0:00:06]} 76. Kg6 {[%clk 0:00:22]}  Ke6 {[%clk 0:00:06]} 77. h6 {[%clk 0:00:21]}  Ke7 {[%clk 0:00:07]} 78. Kg7 {[%clk 0:00:21]}  Ng5 {[%clk 0:00:05]} 79. h7 {[%clk 0:00:21]}  Nf7 {[%clk 0:00:04]} 80. g5 {[%clk 0:00:21]}  Nxg5 {[%clk 0:00:02]} 81. h8=Q {[%clk 0:00:21]}  Ne6+ {[%clk 0:00:03]} 82. Kg6 {[%clk 0:00:21]}  Nf8+ {[%clk 0:00:04]} 83. Kf5 {[%clk 0:00:20]}  Ne6 {[%clk 0:00:04]} 84. Qf6+ {[%clk 0:00:20]} 1-0


[Site "https://www.chess.com"]

[Event "Late Titled Tuesday Blitz February 8 2022"]
[White "Solon, Nathan"]
[Black "Kosakowski, Jakub"]
[WhiteFideId "2017229"]
[BlackFideId "1185080"]
[WhiteElo "2562"]
[BlackElo "2476"]
[Result "1-0"]
[Round "07"]
[TimeControl "180+1"]
[Date "2022.02.09"]
[WhiteClock "0:02:26"]
[BlackClock "0:00:36"]

1. d4 {[%clk 0:02:56]}  b5 {[%clk 0:02:43]} 2. e4 {[%clk 0:02:55]}  Bb7 {[%clk 0:02:42]} 3. Bd3 {[%clk 0:02:54]}  e6 {[%clk 0:02:40]} 4. Nf3 {[%clk 0:02:54]}  a6 {[%clk 0:02:39]} 5. O-O {[%clk 0:02:53]}  c5 {[%clk 0:02:39]} 6. c3 {[%clk 0:02:53]}  Nf6 {[%clk 0:02:39]} 7. Nbd2 {[%clk 0:02:50]}  Be7 {[%clk 0:02:33]} 8. dxc5 {[%clk 0:02:47]}  Bxc5 {[%clk 0:02:32]} 9. e5 {[%clk 0:02:48]}  Nd5 {[%clk 0:02:31]} 10. Ne4 {[%clk 0:02:48]}  Be7 {[%clk 0:02:31]} 11. Re1 {[%clk 0:02:39]}  Nc6 {[%clk 0:02:29]} 12. Bg5 {[%clk 0:02:33]}  O-O {[%clk 0:02:17]} 13. Bxe7 {[%clk 0:02:28]}  Ncxe7 {[%clk 0:02:18]} 14. Nd6 {[%clk 0:02:26]}  Bc6 {[%clk 0:01:24]} 15. Bxh7+ {[%clk 0:02:26]}  Kh8 {[%clk 0:00:36]} 16. Ng5 {[%clk 0:02:26]} 1-0


[Site "https://www.chess.com"]